bitfinex/quotes_ETHUSD_20260217
["timestamp","ask_amount","ask_price","bid_price","bid_amount"]
[1771359915853,0.0011,1996.2,1995.7,0.49542344]
[1771359916946,0.47266614,1996.2,1995.6,1.90475606]
[1771359917146,0.0011,1996.2,1995.6,1.90475606]
[1771359917351,1.72508428,1996.2,1995.6,1.25275606]
[1771359918067,0.0011,1996.2,1995.6,1.25275606]
[1771359918272,0.0011,1996.2,1995.7,0.49542344]
[1771359918471,0.0011,1996.2,1995.8,0.49542344]
[1771359918774,0.0011,1996.4,1996.0,0.49542344]
[1771359918981,0.47156614,1996.8,1996.0,1.14842344]
[1771359919168,1.72358091,1996.8,1996.0,1.14842344]
[1771359919399,0.47156614,1996.5,1995.6,1.74811673]
[1771359919681,0.47156614,1996.5,1995.9,0.653]
[1771359921171,0.47156614,1996.5,1995.6,1.74811673]
[1771359921347,0.47156614,1996.4,1995.7,1.90463992]
[1771359922877,0.47156614,1996.4,1995.7,1.25263992]
[1771359923475,1.72374034,1996.6,1995.7,1.74806336]
[1771359923682,0.47156614,1996.6,1995.8,0.49542344]
[1771359924057,1.72370001,1996.6,1995.8,0.49542344]
[1771359925894,0.0011,1996.9,1996.0,0.49542344]
[1771359926207,0.0011,1996.9,1996.1,1.14742344]
[1771359926487,1.72460668,1996.9,1996.1,1.14742344]
[1771359926689,0.47156614,1996.8,1996.1,0.652]
[1771359927263,0.0011,1996.5,1996.1,0.652]
[1771359927466,0.0011,1996.5,1996.1,1.14742344]
[1771359928060,0.0011,1996.5,1996.1,1.90440248]
[1771359928688,0.0011,1996.5,1996.0,1.25250501]
[1771359929198,0.0011,1996.5,1995.9,1.25251658]
[1771359930297,0.0011,1996.5,1995.9,1.74794002]
[1771359930792,0.0011,1996.5,1995.9,1.25251658]
[1771359930964,0.0011,1996.6,1996.0,0.49542344]
[1771359931161,0.0011,1996.8,1996.0,0.49542344]
[1771359931401,0.0011,1996.8,1995.9,7.76621543]
[1771359931402,1.72467897,1996.8,1996.1,0.653]
[1771359931565,0.47156614,1996.7,1996.1,0.653]
[1771359931766,0.47156614,1996.7,1995.9,1.25251658]
[1771359932493,1.72369475,1996.6,1995.8,1.25358048]
[1771359932667,0.47156614,1996.5,1995.8,1.25358048]
[1771359935702,5.00851447,1996.7,1995.9,0.49542344]
[1771359935703,1.72363732,1996.7,1995.9,0.49542344]
[1771359935907,0.0011,1996.8,1995.9,0.49542344]
[1771359936106,0.0011,1996.8,1996.2,15.145771]
[1771359936282,1.72460921,1996.9,1996.2,0.653]
[1771359936706,0.47156614,1996.8,1996.2,0.653]
[1771359936899,0.0011,1996.9,1996.2,1.14842344]
[1771359938608,0.0011,1996.9,1996.3,1.25231678]
[1771359939310,0.47266614,1996.9,1996.0,1.90550501]
[1771359939477,0.47266614,1996.9,1996.0,1.25250501]
[1771359939892,0.47266614,1996.9,1995.9,1.90552457]
[1771359940293,0.47266614,1996.9,1995.9,1.90652457]
[1771359940786,0.47156614,1996.7,1995.9,1.25352457]
[1771359941505,1.2531032,1996.8,1995.9,1.74894801]
[1771359941506,0.0011,1996.8,1995.9,1.74894801]
[1771359941709,0.0011,1996.8,1996.0,0.49542344]
[1771359942481,0.0011,1996.8,1996.1,0.653]
[1771359942883,0.0011,1996.8,1996.2,1.25237952]
[1771359944915,0.0011,1996.8,1996.1,5.00951808]
[1771359945418,0.46702809,1996.8,1996.1,1.25244226]
[1771359946110,0.46702809,1996.8,1996.0,1.25245626]
[1771359946313,0.46702809,1996.8,1995.9,1.25353437]
[1771359946620,0.46702809,1996.8,1995.9,1.7319203]
[1771359947000,0.46592809,1996.6,1995.9,0.001]
[1771359949008,1.25219133,1996.5,1995.9,0.001]
[1771359949195,0.46592809,1996.4,1995.9,0.001]
[1771359950198,0.46592809,1996.4,1995.7,0.001]
[1771359951019,0.46592809,1996.1,1995.7,0.001]
[1771359951318,0.46592809,1995.9,1995.7,0.001]
[1771359952018,0.46592809,1995.9,1995.5,0.001]
[1771359952602,0.46592809,1995.8,1995.1,0.001]
[1771359953003,0.687,1995.7,1995.1,0.001]
[1771359953815,0.687,1995.8,1995.1,0.001]
[1771359954012,0.687,1995.9,1995.6,0.001]
[1771359954605,1.7194139,1996.0,1995.6,0.001]
[1771359954801,1.15386962,1996.0,1995.6,0.001]
[1771359955835,2.40637779,1996.0,1995.6,0.001]
[1771359956209,1.15386962,1996.0,1995.6,0.001]
[1771359956629,0.687,1996.0,1995.6,0.001]
[1771359957041,5.47651776,1996.2,1995.6,0.001]
[1771359957042,1.71930757,1996.2,1995.6,0.001]
[1771359957265,1.25234124,1996.3,1995.6,0.001]
[1771359957540,0.688,1996.2,1995.6,0.001]
[1771359959280,1.25244226,1996.1,1995.6,0.001]
[1771359959973,2.40730114,1996.2,1995.6,0.001]
[1771359962558,2.40725215,1996.2,1995.6,0.001]
[1771359962957,1.15486962,1996.2,1995.6,0.001]
[1771359963754,0.688,1996.2,1995.6,0.001]
[1771359964656,0.688,1996.2,1995.6,0.45921794]
[1771359965055,2.40725314,1996.2,1995.6,0.001]
[1771359965260,0.46686962,1996.1,1995.6,0.001]
[1771359965761,1.25250501,1996.0,1995.6,0.001]
[1771359965966,1.71935918,1996.1,1995.6,0.001]
[1771359969554,0.46686962,1996.0,1995.6,0.001]
[1771359971668,0.46686962,1995.8,1995.6,0.001]
[1771359971972,0.69,1995.7,1995.6,0.001]
[1771359972175,5.0099711,1996.1,1995.3,0.001]
[1771359972176,0.46686962,1996.2,1995.3,0.45921794]
[1771359972346,2.41024914,1996.2,1995.3,0.45921794]
[1771359972543,1.71924914,1996.2,1995.3,0.45921794]
[1771359972767,0.691,1996.1,1995.3,0.45921794]
[1771359973164,0.0011,1996.3,1995.3,0.45921794]
[1771359973165,0.691,1996.2,1995.3,0.45921794]
[1771359973470,0.635,1996.2,1995.3,0.45921794]
[1771359973876,0.635,1996.2,1995.5,0.45821794]
[1771359975476,1.88738294,1996.2,1995.5,0.45821794]
[1771359976061,1.88738294,1996.2,1995.6,1.25275606]
[1771359976770,0.45426457,1996.1,1995.4,1.25288162]
[1771359976971,0.45426457,1996.1,1995.3,0.001]
[1771359978269,0.45426457,1995.9,1995.6,0.001]
[1771359978462,0.45426457,1995.8,1995.6,0.001]
[1771359978667,1.14426457,1995.8,1995.6,0.001]
[1771359979187,0.45426457,1995.7,1995.5,0.001]
[1771359980181,0.691,1995.8,1995.5,0.001]
[1771359980890,0.691,1995.9,1995.5,0.001]
[1771359982495,1.25263052,1995.8,1995.5,0.001]
[1771359982696,1.70689509,1995.8,1995.5,0.001]
[1771359983286,1.94361611,1995.9,1995.5,0.001]
[1771359984163,1.70688068,1995.9,1995.5,0.001]
[1771359984493,0.691,1995.8,1995.5,0.001]
[1771359984692,1.25269329,1995.7,1995.5,0.001]
[1771359989176,0.691,1995.8,1995.5,0.001]
[1771359989776,0.694,1995.7,1995.5,0.001]
[1771359991301,1.25262662,1995.9,1995.5,0.001]
[1771359991478,1.94662662,1995.9,1995.5,0.001]
[1771359991676,1.94662662,1995.9,1995.6,0.001]
[1771359992078,0.0011,1995.7,1995.6,0.001]
[1771359995903,0.45536457,1995.7,1995.5,0.001]
[1771359996619,0.45536457,1995.7,1995.3,0.001]
[1771359998279,1.25275606,1995.6,1995.3,0.001]
[1771359998481,0.696,1995.5,1995.3,0.001]
[1771359999324,0.696,1995.6,1995.3,0.001]
[1771360000821,1.9487671,1995.6,1995.3,0.001]
[1771360002230,0.696,1995.6,1995.3,0.001]
[1771360002521,0.0011,1995.9,1995.4,0.47059296]
[1771360002695,0.0022,1995.9,1995.4,0.47059296]
[1771360002895,0.0011,1995.9,1995.4,0.47059296]
[1771360004828,0.0011,1995.9,1995.5,1.25281884]
[1771360004996,0.0011,1995.9,1995.4,1.7327766]
[1771360005196,0.0011,1995.6,1995.4,1.7327766]
[1771360008142,0.0011,1995.6,1995.5,0.47894602]
[1771360009100,0.0011,1995.6,1995.5,1.73176486]
[1771360010705,0.0011,1995.7,1995.5,1.73176486]
[1771360010899,0.0011,1995.9,1995.6,0.47894602]
[1771360011117,0.0011,1995.9,1995.6,1.73164705]
[1771360011118,0.0022,1995.9,1995.6,1.73164705]
[1771360011657,0.0011,1995.8,1995.4,1.25383177]
[1771360012027,0.0011,1995.7,1995.5,0.47894602]
[1771360012219,0.0011,1995.7,1995.4,1.25383177]
[1771360012444,0.0011,1995.7,1995.4,1.73277779]
[1771360013948,0.0011,1995.7,1995.5,0.48829894]
[1771360016128,0.0011,1995.7,1995.4,0.001]
[1771360017036,0.0011,1995.7,1995.5,0.001]
[1771360017410,0.0011,1995.6,1995.5,0.001]
[1771360019379,0.0011,1995.6,1995.5,1.25381884]
[1771360019791,0.0011,1995.6,1995.5,0.001]
[1771360020496,0.0011,1995.6,1995.4,0.0009]
[1771360020788,0.0011,1995.6,1995.2,0.001]
[1771360020789,0.0011,1995.6,1995.2,5.660873]
[1771360020987,0.0011,1995.6,1995.3,0.48829894]
[1771360021347,0.0011,1995.9,1995.5,1.74111778]
[1771360021752,0.0011,1995.9,1995.5,1.74301778]
[1771360022689,0.0011,1995.9,1995.6,6.14727194]
[1771360023071,0.0011,1995.9,1995.7,0.0019]
[1771360023574,0.0011,1995.9,1995.7,1.25459329]
[1771360023798,0.0011,1996.1,1995.8,6.14727194]
[1771360023995,0.0011,1996.3,1995.8,6.14727194]
[1771360024200,0.0011,1996.3,1995.9,0.0019]
[1771360024978,6.11822029,1996.3,1995.5,1.25276994]
[1771360025179,6.11822029,1996.3,1995.5,1.90876994]
[1771360025401,1.25237952,1996.2,1995.5,1.90876994]
[1771360025712,1.25237952,1996.2,1995.6,0.0019]
[1771360025713,1.71052681,1996.2,1995.6,0.0019]
[1771360025883,0.45814729,1996.1,1995.5,1.25471769]
[1771360026090,1.25237952,1996.2,1995.5,1.25471769]
[1771360026490,1.25237952,1996.2,1995.5,1.25281769]
[1771360027186,0.0011,1996.3,1995.6,0.49019894]
[1771360027386,1.25341866,1996.3,1995.6,0.49019894]
[1771360027611,0.0011,1996.3,1995.7,1.25269329]
[1771360028415,0.0011,1996.3,1995.7,7.39996523]
[1771360029007,0.0011,1996.3,1995.9,5.658973]
[1771360029316,0.0011,1996.3,1995.8,0.0019]
[1771360029523,0.0003,1996.4,1996.0,0.48829894]
[1771360029716,0.0003,1996.4,1995.7,1.25263052]
[1771360029925,0.0003,1996.4,1995.8,5.49868834]
[1771360030125,0.0003,1996.4,1995.8,11.15766134]
[1771360030524,0.0011,1996.2,1995.8,11.15766134]
[1771360031520,0.0011,1996.2,1995.8,5.49868834]
[1771360032095,0.0011,1996.2,1995.8,11.15766134]
[1771360033206,0.0003,1996.4,1996.1,0.48829894]
[1771360033411,0.0003,1996.4,1996.2,5.658973]
[1771360033598,0.0011,1996.6,1996.2,5.658973]
[1771360034129,0.0011,1996.6,1996.1,0.661]
[1771360034826,0.0011,1996.6,1996.0,1.25245572]
[1771360035324,0.0011,1996.6,1996.0,1.70407073]
[1771360036321,0.0011,1996.6,1996.1,0.45161501]
[1771360038119,0.0011,1996.6,1996.2,1.25237952]
[1771360038821,0.0011,1996.6,1996.0,5.00990349]
[1771360039219,0.0011,1996.6,1996.1,0.45161501]
[1771360040028,0.0011,1996.6,1996.2,1.25237952]
[1771360040211,0.0011,1996.6,1996.2,1.91437952]
[1771360040412,0.0011,1996.6,1996.2,1.25237952]
[1771360040611,0.0011,1996.6,1996.2,1.91437952]
[1771360041432,0.0011,1996.6,1996.2,1.25237952]
[1771360042319,0.0011,1996.6,1996.1,5.00951808]
[1771360042503,0.48493829,1996.5,1995.7,1.25364628]
[1771360042704,1.59,1996.5,1995.8,0.45161501]
[1771360042935,0.0011,1996.6,1995.8,0.45161501]
[1771360043140,0.0011,1996.5,1995.8,0.45161501]
[1771360044422,0.0011,1996.5,1996.0,0.45161501]
[1771360046823,0.0011,1996.5,1996.1,1.70405727]
[1771360047650,0.42972342,1996.4,1996.0,1.25246362]
[1771360047869,0.42972342,1996.4,1995.7,0.001]
[1771360047870,0.42972342,1996.3,1995.7,0.001]
[1771360048012,0.42972342,1996.3,1995.5,0.001]
[1771360048214,0.685,1996.2,1995.5,0.001]
[1771360048446,1.11472342,1996.3,1995.5,1.70641564]
[1771360048651,0.685,1996.3,1995.5,1.70641564]
[1771360048868,1.25237952,1996.2,1995.5,1.70641564]
[1771360049640,1.93736745,1996.3,1995.5,1.70641564]
[1771360050341,1.93731854,1996.3,1995.5,1.70641564]
[1771360050525,1.93732492,1996.3,1995.5,1.70641564]
[1771360051349,1.93732492,1996.3,1995.5,1.25480063]
[1771360051350,0.42972342,1996.2,1995.5,1.25480063]
[1771360051938,0.42972342,1996.2,1995.5,1.25380063]
[1771360052316,5.00987055,1996.5,1995.6,0.45161501]
[1771360052317,0.0011,1996.5,1995.6,0.45161501]
[1771360052617,1.25225729,1996.4,1995.6,0.45261501]
[1771360054149,5.01003955,1996.5,1995.7,1.25269329]
[1771360054653,5.43976297,1996.5,1995.7,1.25269329]
[1771360055032,5.43976297,1996.5,1995.6,1.70632616]
[1771360055244,0.42972342,1996.3,1995.6,1.25474347]
[1771360055642,0.42972342,1996.3,1995.6,0.002]
[1771360056034,1.68210294,1996.2,1995.6,0.002]
[1771360056748,2.36710294,1996.2,1995.6,0.001]
[1771360056974,1.25230585,1996.4,1995.7,0.45261501]
[1771360057254,1.25230585,1996.4,1995.7,0.001]
[1771360057255,1.93730585,1996.4,1995.7,0.001]
[1771360057953,2.36702927,1996.4,1995.7,0.001]
[1771360059451,2.36702927,1996.4,1995.6,0.001]
[1771360059657,2.36702927,1996.4,1995.7,0.001]
[1771360060560,1.93730585,1996.4,1995.7,0.001]
[1771360060854,0.686,1996.4,1995.7,0.45261501]
[1771360061666,1.25332816,1996.5,1995.7,0.45261501]
[1771360061846,1.93832816,1996.5,1995.7,0.45261501]
[1771360062732,0.42972342,1996.4,1995.7,0.001]
[1771360063060,0.42972342,1996.4,1995.7,1.25368574]
[1771360064258,0.42972342,1996.4,1995.7,0.001]
[1771360064753,1.25231678,1996.3,1995.7,0.001]
[1771360065363,1.6820402,1996.3,1995.7,0.001]
[1771360065548,0.42972342,1996.2,1995.7,0.001]
[1771360066358,0.42972342,1996.2,1995.8,0.001]
[1771360066862,1.25244226,1996.1,1995.8,0.001]
[1771360067058,1.68214759,1996.2,1995.8,0.001]
[1771360067932,1.25242417,1996.2,1995.8,0.001]
[1771360068964,0.687,1996.2,1995.8,0.001]
[1771360070731,0.42972342,1996.1,1995.8,0.002]
[1771360071066,1.25250501,1996.0,1995.8,0.002]
[1771360071239,1.25250501,1996.0,1995.7,0.001]
[1771360072633,1.68222843,1996.0,1995.7,0.001]
[1771360072872,0.42972342,1995.9,1995.7,0.001]
[1771360073178,1.94263052,1995.8,1995.6,0.001]
[1771360074684,2.37235394,1995.8,1995.6,0.001]
[1771360075254,2.37235394,1995.8,1995.4,0.001]
[1771360077276,1.94263052,1995.8,1995.4,0.001]
[1771360078188,0.42972342,1995.7,1995.4,0.001]
[1771360079192,1.25275606,1995.6,1995.4,0.001]
[1771360081059,0.696,1995.5,1995.4,0.001]
[1771360081282,1.25288162,1995.4,1995.1,0.001]
[1771360082215,0.696,1995.5,1995.1,0.47765405]
[1771360082503,5.91400766,1996.1,1995.5,0.47665405]
[1771360082504,7.7325536,1996.0,1995.5,0.47665405]
[1771360082683,0.697,1995.9,1995.5,0.47665405]
[1771360083513,5.660348,1995.8,1995.1,0.001]
[1771360083660,5.660348,1995.6,1995.1,0.001]
[1771360083875,0.697,1995.5,1995.1,1.73069472]
[1771360084174,11.10034247,1996.0,1995.1,1.73069472]
[1771360084175,5.660348,1995.7,1995.1,0.001]
[1771360084376,5.660348,1995.5,1995.1,0.001]
[1771360084793,0.697,1995.6,1995.1,0.001]
[1771360085366,0.697,1995.6,1995.1,1.25406975]
[1771360085596,1.94979311,1995.6,1995.1,0.001]
[1771360085999,5.660348,1995.5,1995.1,0.001]
[1771360086808,1.94979311,1995.6,1995.1,0.47765405]
[1771360087009,0.697,1995.6,1995.1,0.47765405]
[1771360087692,0.699,1995.7,1995.3,0.47665405]
[1771360088005,0.699,1995.7,1995.1,1.25401809]
[1771360089086,0.699,1995.7,1995.1,0.001]
[1771360089503,0.699,1995.7,1995.1,1.25406455]
[1771360089685,1.25275606,1995.6,1995.1,1.25406455]
[1771360090321,1.25275606,1995.6,1995.1,0.001]
[1771360090690,1.25275606,1995.6,1995.2,0.001]
[1771360091015,1.25385606,1995.6,1995.2,0.001]
[1771360093114,0.0011,1995.6,1995.3,0.47665405]
[1771360093993,0.0011,1995.6,1995.2,0.001]
[1771360099523,0.43082342,1995.6,1995.2,0.001]
[1771360100417,0.0011,1995.6,1995.2,0.001]
[1771360101018,0.702,1995.5,1995.2,0.001]
[1771360103121,1.9548716,1995.5,1995.2,0.001]
[1771360103694,1.9559716,1995.5,1995.2,0.001]
[1771360103898,1.2539716,1995.5,1995.2,0.001]
[1771360104096,1.9559716,1995.5,1995.2,0.001]
[1771360104525,0.0011,1995.5,1995.2,0.45717825]
[1771360105731,0.0011,1995.5,1995.2,1.71017885]
[1771360106632,0.0011,1995.5,1995.2,0.45717825]
[1771360107924,0.0011,1995.5,1995.2,0.001]
[1771360108642,0.0011,1995.5,1995.3,0.45617825]
[1771360109137,0.0011,1995.5,1995.2,1.25399544]
[1771360109712,0.0011,1995.5,1995.2,1.71017369]
[1771360110012,0.0011,1995.5,1995.2,0.45717825]
[1771360113140,0.0011,1995.5,1995.2,1.71017873]
[1771360113443,0.0011,1995.5,1995.3,0.45617825]
[1771360114849,0.0011,1995.5,1995.3,1.70911394]
[1771360115735,0.0011,1995.5,1995.4,0.45617825]
[1771360116047,0.0011,1995.5,1995.3,0.001]
[1771360116248,0.0011,1995.5,1995.3,1.25392607]
[1771360116450,0.0011,1995.5,1995.3,0.001]
[1771360116658,0.0011,1995.5,1995.3,1.25394227]
[1771360116814,0.0011,1995.5,1995.4,0.45617825]
[1771360118717,0.0011,1995.5,1995.3,0.001]
[1771360121728,0.0011,1995.5,1995.3,0.45717825]
[1771360122569,0.0011,1995.5,1995.3,0.001]
[1771360128172,0.0011,1995.5,1995.4,0.001]
[1771360128672,0.0011,1995.5,1995.4,0.46092623]
[1771360129641,0.0011,1995.5,1995.4,0.001]
[1771360131373,0.0011,1995.5,1995.4,1.25388162]
[1771360131670,0.0011,1995.5,1995.4,0.001]
[1771360131882,0.0011,1995.5,1995.4,1.71380785]
[1771360132980,0.0011,1995.6,1995.5,0.46510199]
[1771360133282,0.0011,1995.8,1995.5,0.46510199]
[1771360134560,0.0011,1995.8,1995.7,0.46510199]
[1771360135261,0.0011,1996.1,1995.7,0.46510199]
[1771360136785,0.0011,1996.1,1995.5,1.71792083]
[1771360136786,6.09189711,1996.1,1995.5,1.71792083]
[1771360137084,6.09189711,1996.1,1995.4,1.25384026]
[1771360137283,6.09189711,1996.1,1995.4,1.71894225]
[1771360137492,0.43082342,1996.1,1995.4,1.71894225]
[1771360138493,0.43082342,1996.1,1995.5,0.46510199]
[1771360138672,0.0011,1996.1,1995.6,1.71785805]
[1771360140193,0.0011,1996.0,1995.6,1.71785805]
[1771360140370,0.0011,1996.0,1995.6,0.46510199]
[1771360140772,0.0011,1996.0,1995.6,1.71782217]
[1771360141994,0.0011,1996.3,1996.1,0.46510199]
[1771360142195,0.7051,1996.6,1996.2,0.46510199]
[1771360142396,0.0011,1996.7,1996.4,0.46510199]
[1771360142990,0.0011,1996.7,1996.6,0.46510199]
[1771360143387,0.704,1997.1,1996.6,0.46510199]
[1771360143575,5.00601387,1997.6,1996.6,0.46510199]
[1771360143576,0.704,1997.7,1997.1,0.46510199]
[1771360143900,0.903,1998.2,1997.1,0.46510199]
[1771360143901,0.42972342,1998.1,1997.1,0.46510199]
[1771360144380,0.704,1998.1,1997.1,0.46510199]
[1771360144569,0.704,1998.4,1997.3,0.46510199]
[1771360144785,0.704,1998.4,1997.5,0.46510199]
[1771360144988,1.25099695,1998.5,1997.7,0.46510199]
[1771360145266,10.59096108,2000.1,1997.6,1.2515018]
[1771360145267,1.74528042,1999.7,1998.5,0.46510199]
[1771360145487,0.703,1999.7,1998.6,0.46510199]
[1771360145676,0.703,1999.7,1998.8,0.46510199]
[1771360145879,0.4950929,1999.6,1998.4,0.46510199]
[1771360146080,7.04817509,1999.6,1997.9,0.46510199]
[1771360146283,0.4950929,1999.5,1998.1,0.433]
[1771360147092,0.4950929,1999.3,1998.1,1.68413537]
[1771360147307,0.4950929,1999.3,1998.2,0.46510199]
[1771360147520,1.25037511,1999.4,1998.2,0.46510199]
[1771360147669,1.25034901,1999.5,1998.2,0.46510199]
[1771360148306,1.74544191,1999.5,1998.3,0.668]
[1771360148689,2.44835266,1999.6,1998.4,0.46510199]
[1771360148996,2.44835266,1999.6,1998.4,1.13310199]
[1771360149205,2.44835266,1999.6,1998.5,1.2509382]
[1771360149385,2.44835266,1999.6,1998.5,1.71604019]
[1771360149386,1.74535266,1999.6,1998.5,1.71604019]
[1771360149710,2.44835266,1999.6,1998.5,2.38404019]
[1771360149904,2.44835266,1999.6,1998.5,1.2509382]
[1771360150207,2.44835266,1999.6,1998.5,1.9189382]
[1771360151081,2.44835266,1999.6,1998.5,2.38404019]
[1771360151280,0.94729416,1999.8,1998.6,0.46510199]
[1771360151500,2.19745536,1999.8,1998.6,0.46510199]
[1771360151688,2.90045536,1999.8,1998.7,0.669]
[1771360151898,3.39554826,1999.8,1998.7,1.13410199]
[1771360152098,0.0011,1999.7,1998.7,1.13410199]
[1771360152609,0.0011,1999.7,1998.8,0.46510199]
[1771360153404,0.0011,1999.7,1999.0,0.46510199]
[1771360153700,0.0011,1999.7,1998.9,1.91868787]
[1771360154595,0.0011,1999.7,1998.9,1.25068787]
[1771360154901,0.46146992,1999.7,1998.9,1.25068787]
[1771360155275,1.16346992,1999.7,1998.9,1.25068787]
[1771360155476,1.25025005,1999.6,1998.8,5.00275151]
[1771360155797,1.25025005,1999.6,1998.7,2.38385244]
[1771360155798,1.25025005,1999.6,1998.7,1.91877142]
[1771360155998,1.71061997,1999.6,1998.7,1.25077142]
[1771360156577,1.71061997,1999.6,1998.6,0.668]
[1771360156781,0.46036992,1999.5,1998.6,0.668]
[1771360156980,0.46036992,1999.5,1998.6,1.91887423]
[1771360157178,1.95332016,1999.7,1998.7,0.4673283]
[1771360157414,0.7031,1999.7,1998.7,0.4673283]
[1771360157580,0.7031,1999.7,1998.8,1.71807875]
[1771360157774,1.95329522,1999.7,1998.8,1.71807875]
[1771360157975,0.7031,1999.7,1998.8,1.71807875]
[1771360158399,0.7031,1999.7,1998.9,0.4673283]
[1771360159406,2.41365928,1999.7,1998.8,1.25075045]
[1771360159609,2.41365928,1999.7,1998.6,0.4673283]
[1771360159610,1.95328936,1999.7,1998.6,1.71817408]
[1771360159909,0.46036992,1999.6,1998.6,1.71817408]
[1771360160130,1.95328936,1999.7,1998.6,1.71817408]
[1771360160283,1.95328936,1999.7,1998.7,0.4673283]
[1771360160484,0.46036992,1999.6,1998.6,1.25084578]
[1771360161719,1.71068249,1999.5,1998.5,1.25188695]
[1771360162926,0.46036992,1999.4,1998.5,1.25193112]
[1771360163226,0.702,1999.3,1998.5,1.25193112]
[1771360163524,0.702,1999.3,1998.5,1.25193111]
[1771360163525,1.16236992,1999.3,1998.5,1.25193111]
[1771360163721,1.2505002,1999.2,1998.5,0.001]
[1771360164028,5.0020008,1999.4,1998.6,0.4673283]
[1771360164328,5.00235031,1999.7,1998.6,0.4673283]
[1771360164329,0.0011,1999.7,1998.9,0.4673283]
[1771360165113,0.0011,1999.6,1998.9,0.4673283]
[1771360165415,0.0011,1999.6,1998.8,0.668]
[1771360165719,0.0011,1999.6,1998.9,1.25068787]
[1771360166122,0.0011,1999.6,1998.9,1.71801617]
[1771360166713,0.0011,1999.6,1998.8,1.25070887]
[1771360166921,0.0011,1999.6,1998.8,1.91870887]
[1771360168528,0.0011,1999.6,1998.8,2.38603717]
[1771360169024,0.0011,1999.6,1998.8,2.38503717]
[1771360170832,0.0011,1999.6,1998.8,2.38603717]
[1771360171130,0.0011,1999.6,1998.9,0.4673283]
[1771360172327,0.0011,1999.6,1999.0,1.25062531]
[1771360174733,0.46146992,1999.6,1998.6,0.001]
[1771360175031,0.46146992,1999.6,1998.7,1.25075408]
[1771360175334,0.46146992,1999.6,1998.6,1.25187088]
[1771360175631,0.46146992,1999.6,1998.6,1.71919918]
[1771360175841,0.46146992,1999.6,1998.7,0.4673283]
[1771360176513,0.46146992,1999.6,1998.6,1.25187088]
[1771360177251,1.25031257,1999.5,1998.6,1.25187088]
[1771360177540,1.25031257,1999.5,1998.6,1.71919918]
[1771360180423,0.46036992,1999.4,1998.6,1.25187088]
[1771360180731,0.46036992,1999.4,1998.6,0.001]
[1771360180931,0.46036992,1999.3,1998.6,0.001]
[1771360181532,0.46036992,1999.0,1998.4,0.001]
[1771360181745,0.46036992,1998.8,1998.4,0.001]
[1771360183242,0.699,1998.9,1998.4,0.001]
[1771360183647,1.25068787,1998.9,1998.4,0.001]
[1771360184042,1.94965692,1999.0,1998.4,0.001]
[1771360187731,0.45731375,1998.9,1998.4,0.001]
[1771360188858,0.45731375,1998.9,1998.5,0.001]
[1771360189652,1.25075045,1998.8,1998.5,0.001]
[1771360194552,0.49786714,1998.7,1998.2,0.001]
[1771360194859,0.49786714,1998.5,1997.6,1.25148578]
[1771360195770,0.49786714,1998.5,1997.5,1.74874603]
[1771360196065,1.74886794,1998.4,1997.5,1.74876321]
[1771360196358,0.49786714,1998.3,1997.4,1.25160254]
[1771360196730,1.20186714,1998.2,1997.4,1.25160254]
[1771360196927,1.20186714,1998.2,1997.3,1.74887537]
[1771360198536,1.25118862,1998.1,1997.3,1.74887537]
[1771360200169,1.74905576,1998.1,1997.3,0.4972176]
[1771360200368,0.49786714,1997.7,1996.4,1.74947165]
[1771360200535,6.49772253,1997.8,1996.5,0.4972176]
[1771360200536,0.49786714,1997.5,1996.5,0.4972176]
[1771360200745,1.74949425,1997.4,1996.5,0.4972176]
[1771360201042,1.74949425,1997.4,1996.0,5.0099768]
[1771360201043,0.49786714,1997.3,1996.0,0.4972176]
[1771360201641,0.49786714,1997.3,1997.1,0.001]
[1771360201838,0.49786714,1997.3,1996.0,0.4972176]
[1771360202477,0.704,1997.3,1996.3,0.4972176]
[1771360202678,1.25134766,1997.9,1996.9,0.4972176]
[1771360202985,0.704,1998.0,1996.9,0.4972176]
[1771360203670,0.704,1998.0,1997.0,0.4972176]
[1771360204076,0.704,1998.0,1997.0,6.99494013]
[1771360204243,0.704,1998.0,1997.1,0.4972176]
[1771360204871,1.25112601,1998.2,1997.3,0.4972176]
[1771360205552,1.74899315,1998.2,1997.2,1.25175245]
[1771360205754,1.74899315,1998.2,1996.8,1.25195808]
[1771360205755,0.49786714,1998.1,1996.8,1.25195808]
[1771360205954,0.49786714,1998.0,1996.7,1.7492326]
[1771360206158,0.49786714,1997.8,1996.5,5.50588443]
[1771360206369,0.704,1997.7,1996.6,0.4972176]
[1771360207167,1.2515018,1997.6,1996.7,1.7492835]
[1771360207682,1.2515018,1997.6,1996.8,0.4972176]
[1771360207865,1.2515018,1997.6,1996.7,1.2520659]
[1771360208182,1.2515018,1997.6,1996.7,1.7492835]
[1771360208480,1.2515018,1997.6,1996.8,0.4972176]
[1771360208996,1.2515018,1997.6,1996.7,1.2520659]
[1771360209162,1.2515018,1997.6,1996.6,5.50548123]
[1771360209354,1.2515018,1997.6,1996.6,2.41334621]
[1771360209553,0.49786714,1997.5,1996.6,1.25212861]
[1771360209987,0.49786714,1997.5,1996.5,1.2521544]
[1771360210286,0.49786714,1997.5,1996.4,5.00889791]
[1771360210287,0.49786714,1997.5,1996.4,1.25221129]
[1771360211892,1.74949425,1997.4,1996.3,5.50638703]
[1771360212708,1.25161552,1997.5,1996.4,0.4972176]
[1771360212994,1.95561552,1997.5,1996.5,0.4972176]
[1771360213359,2.45348266,1997.5,1996.5,0.4972176]
[1771360213689,0.49786714,1997.4,1996.4,1.25225405]
[1771360213870,0.49786714,1997.4,1996.6,0.001]
[1771360215889,1.25168978,1997.3,1996.6,0.001]
[1771360218776,0.47459886,1997.2,1996.6,0.001]
[1771360220499,1.25181513,1997.1,1996.6,0.001]
[1771360221373,1.25162711,1997.4,1996.6,0.001]
[1771360222479,1.72622597,1997.4,1996.6,1.25312861]
[1771360223084,0.47459886,1997.3,1996.6,0.001]
[1771360224926,0.47459886,1997.1,1996.6,0.001]
[1771360225122,0.705,1997.0,1996.5,0.001]
[1771360226207,8.20635131,1997.2,1996.5,0.001]